Cogmind - Beta 15 @@@ ROGUE MODE // 2025.08.18 @ 20:10:55 Player: puppuppit Result: Destroyed by G-50 Soldier with Heavy Laser Performance ------------- Evolutions (4) 2000 Regions Visited (11) 2200 Robots Destroyed (291) 1455 Value Destroyed (9535) 9535 Prototype IDs (19) 380 Alien Tech Used (0) 0 Bonus (4532) 4532 TOTAL SCORE: 20102 Bonus ------- High Alert Combat Kills 3402 Follower Combat Kills 673 Registered with UFD 300 Met Optimus in HQ 500 Friendly Fire -343 Cogmind --------- Core Integrity 0/850 Matter 103/300 Energy 332/340 System Corruption 18% Temperature Cool (14) Movement Walking (120) Location -6/Factory Parts ------- > --- POWER (1) -------- Graviton Reactor > --- PROPULSION (6) --- Light Treads Carbon-fiber Leg Flexi-carbon Leg Flexi-carbon Leg Wheel > --- UTILITY (4) ------ Advanced Heat Sink Large Storage Unit Improved Light Armor Plating Improved Medium Armor Plating > --- WEAPON (4) ------- Flak Cannon > --- INVENTORY (15) --- Graviton Reactor High-capacity Matter Pod (200) High-capacity Matter Pod (200) Microactuators A0-MCA's Component Scanner DRS Beacon (Ready) Peak State ------------ > --- POWER ------------ Graviton Reactor > --- PROPULSION ------- Gravmag System Gravmag System Gravmag System Improved Gravmag System Gravmag Array > --- UTILITY ---------- Large Storage Unit Gravity Neutralizer Improved Hacking Suite Improved System Shield > --- WEAPON ----------- Coil Gun Advanced KE Penetrator Advanced KE Penetrator Helical Railgun > --- INVENTORY -------- Light Angular Momentum Engine Graviton Reactor Improved Hover Unit Advanced Heat Sink High-capacity Matter Pod High-capacity Matter Pod Recoil Stabilizer A0-MCA's Component Scanner High-powered Tractor Beam Coil Gun Gauss Cannon Magnetic Acceleration Cannon Mass Driver Mass Driver DRS Beacon [Rating: 90] Favorites ----------- Power Cold Fusion Reactor Engine Reinforced Ion Engine Power Core Micro Nuclear Core Reactor Cold Fusion Reactor Propulsion Light Treads Treads Light Treads Leg Flexi-carbon Leg Wheel Wheel Hover Unit Gravmag System Utility Large Storage Unit Device Advanced Heat Sink Storage Large Storage Unit Processor Machine Analyzer Hackware Hacking Suite Protection Weapon Shielding Weapon Assault Cannon Energy Gun EM Pulse Gun Ballistic Gun Autogun Ballistic Cannon Assault Cannon Launcher Advanced EMP Blaster Build | -11 -10 -10 -10 -9 -8 -8 -8 -8 -6 -6 -6 ------- Run | Yrd Mat Min Exi Min Mat Sto Rec Scr Fac Was Fac Slots Evolved 8 | . . . . . 4 . . . 4 . . Power . | . . . . . . . . . . . . Propulsion 4 | . . . . . 1 . . . 3 . . Utility 2 | . . . . . 1 . . . 1 . . Weapon 2 | . . . . . 2 . . . . . . Parts Attached 145 | 7 11 . . . 38 11 2 9 28 . 39 Power 17 | 1 2 . . . 1 2 . . 7 . 4 Engine 8 | 1 2 . . . 1 1 . . 2 . 1 Core 5 | . . . . . . . . . 4 . 1 Reactor 4 | . . . . . . 1 . . 1 . 2 Propulsion 46 | 2 2 . . . 11 5 . . 14 . 12 Treads 23 | 2 2 . . . 10 5 . . 2 . 2 Leg 6 | . . . . . . . . . . . 6 Wheel 1 | . . . . . . . . . . . 1 Hover 16 | . . . . . 1 . . . 12 . 3 Flight . | . . . . . . . . . . . . Utility 37 | 2 3 . . . 8 2 2 4 4 . 12 Device 18 | 1 1 . . . 7 . 1 2 1 . 5 Storage 3 | 1 1 . . . . . . 1 . . . Processor 3 | . . . . . . . . . . . 3 Hackware 9 | . . . . . . 2 1 1 3 . 2 Protection 4 | . 1 . . . 1 . . . . . 2 Artifact . | . . . . . . . . . . . . Weapon 45 | 2 4 . . . 18 2 . 5 3 . 11 Energy Gun 2 | 2 . . . . . . . . . . . Energy Cannon . | . . . . . . . . . . . . Ballistic Gun 17 | . 2 . . . 10 . . . . . 5 Ballistic Cannon 20 | . . . . . 7 . . 5 3 . 5 Launcher 6 | . 2 . . . 1 2 . . . . 1 Special Weapon . | . . . . . . . . . . . . Impact Weapon . | . . . . . . . . . . . . Slashing Weapon . | . . . . . . . . . . . . Piercing Weapon . | . . . . . . . . . . . . Special Melee Weapon . | . . . . . . . . . . . . Unidentified Prototypes 13 | . . . . . 2 3 . . 1 . 7 Parts Lost 47 | . . . . . 5 1 . . 10 . 31 Power 3 | . . . . . . . . . 1 . 2 Propulsion 18 | . . . . . 1 . . . 3 . 14 Utility 9 | . . . . . 1 . . . . . 8 Weapon 17 | . . . . . 3 1 . . 6 . 7 Highest Loss Streak 11 | . . . . . 5 1 . . 5 . 11 To Critical Strikes 1 | . . . . . . . . . . . 1 Average Backups 13 | . 8 15 15 15 14 14 15 13 13 12 11 Power . | . 1 1 1 2 1 . . . . 2 1 Propulsion 2 | . 1 3 3 3 3 2 2 2 2 3 1 Utility 5 | . 1 3 3 3 4 6 7 8 7 7 5 Weapon 3 | . 5 8 7 7 4 5 5 2 2 . 2 Tool/Special . | . . . . . . . . . . . . Unused Backups 29 | . . . 3 . 7 2 . 3 8 . 6 Power 8 | . . . . . 2 1 . . 4 . 1 Propulsion 1 | . . . . . . . . . 1 . . Utility 15 | . . . 2 . 2 1 . 3 2 . 5 Weapon 4 | . . . 1 . 3 . . . . . . Tool/Special 1 | . . . . . . . . . 1 . . Average Slot Usage (%) 93 | . 99 100 100 100 99 99 98 94 88 86 77 Engine 4 | . 14 14 14 14 9 5 . . . . 1 Reactor 3 | . . . . . . 3 9 9 3 . 1 Treads 19 | . 28 28 28 28 26 27 27 27 8 . 1 Hover 7 | . . . . . . . . . 21 33 20 Device 5 | . 7 . . . 16 5 1 3 4 6 5 Storage 8 | . 14 14 14 14 9 9 9 9 6 6 6 Hackware 8 | . . . . . . 12 16 10 14 13 8 Protection 2 | . 6 14 14 14 1 . . . . . . Ballistic Gun 8 | . 19 28 28 26 26 . . . . . 3 Ballistic Cannon 20 | . . . . . 8 34 34 35 24 20 15 Peak Build Rating 90 | 9 14 12 12 12 31 39 38 44 69 60 90 Average Rating 36 | 6 11 12 12 12 25 33 35 37 56 59 55 On Entrance 25 | . 9 12 12 12 12 30 38 24 38 59 60 Naked Turns . | . . . . . . . . . . . . Heaviest Build 73 | 15 34 34 34 34 56 54 54 73 56 44 68 Greatest Support 82 | 40 40 40 40 40 60 62 62 62 82 56 69 Greatest Overweight (x) 6 | . . . . . 1 . . 1 1 . 6 Average Overweight (x) . | . . . . . . . . . . . . Largest Inventory Capacity 15 | 8 15 15 15 15 15 15 15 15 15 15 15 Average Capacity 14 | 7 13 15 15 15 15 15 15 15 15 15 15 Most Carried 15 | 1 15 15 15 15 15 15 15 15 15 15 15 Average Carried 13 | . 9 15 14 15 14 14 15 14 14 14 12 Final Capacity 15 | 8 15 15 15 15 15 15 15 15 15 15 15 Final Carried 15 | . 15 15 15 15 15 15 15 15 13 15 6 Class Distribution -------------------- 42% | Hacker-Gunner 19% | Mutant 15% | Gunner 8% | Scavenger-Skirmisher 5% | Scavenger-Gunner 4% | Scavenger-Mutant Dominant Class ---------------- Mutant | -10/Materials Mutant | -10/Mines Mutant | -10/Exiles Mutant | -9/Mines Scavenger-Skirmisher | -8/Materials Hacker-Gunner | -8/Storage Hacker-Gunner | -8/Recycling Gunner | -8/Scraptown Hacker-Gunner | -6/Factory Hacker-Gunner | -6/Waste Hacker-Gunner | -6/Factory Resources | -11 -10 -10 -10 -9 -8 -8 -8 -8 -6 -6 -6 ----------- Run | Yrd Mat Min Exi Min Mat Sto Rec Scr Fac Was Fac Matter Collected 13273 | 270 615 187 216 71 2906 1728 312 714 2712 1 3541 Remotely 2474 | . . . . . 389 531 . . 473 1 1080 Salvage Created 11471 | 176 768 187 . 197 2855 2081 278 . 2141 . 2788 Parts 582 | 17 44 17 . 12 164 109 14 . 94 . 111 Haulers Intercepted 13 | . 2 . . . 5 5 . . . . 1 Recyclers Shooed 19 | . 3 1 . . . 5 . . 1 . 9 Parts Field Recycled . | . . . . . . . . . . . . Retrieved Matter . | . . . . . . . . . . . . Parts Self-Destructed . | . . . . . . . . . . . . Prevented . | . . . . . . . . . . . . Kills | -11 -10 -10 -10 -9 -8 -8 -8 -8 -6 -6 -6 ------- Run | Yrd Mat Min Exi Min Mat Sto Rec Scr Fac Was Fac Combat Hostiles Destroyed 182 | . 12 1 . 3 54 42 4 . 35 . 31 Guns 51 | . 6 1 . 1 32 . . . . . 11 Cannons 83 | . . . . . 17 26 4 . 17 . 19 AOE 46 | . 6 . . 2 5 14 . . 18 . 1 Classes Destroyed 17 | 3 6 . . . 4 1 . . 3 . . Worker 23 | 2 . 2 . 1 5 4 . . 5 . 4 Builder 16 | . 1 2 . . 2 3 . . 4 . 4 Tunneler 6 | 3 . 1 . . 1 . . . . . 1 Hauler 13 | . 2 . . . 5 5 . . . . 1 Recycler 31 | 1 2 1 . 2 4 5 2 . 3 . 11 Mechanic 5 | . . . . . . 1 . . 1 . 3 Operator 3 | . 1 . . . . 2 . . . . . Watcher 11 | . 3 . . . 4 2 . . . . 2 Swarmer 33 | . 3 . . 3 8 9 . . 6 . 4 Grunt 87 | . 9 1 . . 29 24 . . 14 . 10 Brawler 8 | . . . . . 4 1 . . 1 . 2 Duelist 7 | . . . . . 3 2 . . 1 . 1 Protector 3 | . . . . . 3 . . . . . . Sentry 28 | . . . . . 7 6 4 . 6 . 5 Hunter 7 | . . . . . . . . . 4 . 3 Programmer 9 | . . . . . . . . . 3 . 6 Scrapoid 1 | . . . . . . . . . 1 . . Best Kill Streak 11 | 4 4 2 . 4 11 10 2 . 9 . 6 Combat Bots Only 10 | . 3 1 . 3 10 8 2 . 6 . 5 Max Kills in Single Turn 9 | 2 4 2 . 3 4 4 1 . 9 . 2 Gunslinging . | . . . . . . . . . . . . Exploded 6 | . 3 . . 2 3 2 . . 6 . 1 Melee . | . . . . . . . . . . . . Uniques/NPCs Destroyed . | . . . . . . . . . . . . Combat | -11 -10 -10 -10 -9 -8 -8 -8 -8 -6 -6 -6 -------- Run | Yrd Mat Min Exi Min Mat Sto Rec Scr Fac Was Fac Hostile Shots Fired 1054 | . 37 . . 4 161 109 2 . 259 . 482 Missed 422 | . 9 . . 2 47 31 1 . 112 . 220 Hits 632 | . 28 . . 2 114 78 1 . 147 . 262 Melee 26 | . . . . . 14 2 . . . . 10 Projectile 606 | . 28 . . 2 100 76 1 . 147 . 252 Critical Strikes 21 | . . . . . 9 2 . . 2 . 8 Actively Blocked 1 | . . . . . 1 . . . . . . Damage Taken 9862 | . 322 . . 16 2007 1164 12 . 2046 . 4295 Core 1158 | . 36 . . . 141 122 . . 89 . 770 Absorbed by Shields 25 | . . . . . . . . . . . 25 Redirected to Shielding 44 | . 12 . . 2 30 . . . . . . Regen/Repaired (Parts) 699 | . . . . . . 111 . . 279 . 309 Core Remaining (%) 79 | 100 . . . 85 . . . 52 . . . Volleys Fired 590 | 11 50 9 . 6 121 103 7 . 103 1 179 Largest 4 | 2 2 2 . 2 4 4 4 . 4 3 4 Hottest 158 | 90 90 46 . 46 148 148 148 . 154 114 158 Shots Fired 1625 | 22 98 16 . 11 476 278 28 . 262 4 430 Gun 667 | 22 95 16 . 10 372 . . . . . 152 Cannon 909 | . . . . . 100 260 28 . 239 4 278 Launcher 49 | . 3 . . 1 4 18 . . 23 . . Special . | . . . . . . . . . . . . Kinetic 1536 | . 77 16 . 10 472 260 28 . 239 4 430 Thermal 20 | 11 9 . . . . . . . . . . Explosive 8 | . 3 . . 1 4 . . . . . . Electromagnetic 61 | 11 9 . . . . 18 . . 23 . . Robot Hit Streak 12 | 6 9 4 . 5 12 9 4 . 8 1 9 Robot Miss Streak 8 | 3 4 1 . 2 6 8 4 . 6 2 7 Penetration Max 1 | . . . . . . . . . 1 . 1 Secondary Targets 8 | . 1 . . . 6 . . . . . 1 Max Gunslinging Chain 1 | . 1 . . . 1 . . . . . 1 Shots Hit Robots 834 | 13 54 11 . 7 255 143 12 . 105 1 233 Core Hits 522 | 7 27 8 . 8 143 104 9 . 110 . 106 Critical Kills 3 | . . . . . 2 . . . . . 1 Critical Parts Destroyed 10 | . . . . . 4 . . . . . 6 Critical Strikes 42 | 1 . . . . 10 3 1 . 11 . 16 Burn 1 | 1 . . . . . . . . . . . Destroy 13 | . . . . . 6 . . . . . 7 Blast 28 | . . . . . 4 3 1 . 11 . 9 Melee Attacks . | . . . . . . . . . . . . Impact . | . . . . . . . . . . . . Slashing . | . . . . . . . . . . . . Piercing . | . . . . . . . . . . . . Sneak Attacks . | . . . . . . . . . . . . Combat Hostiles . | . . . . . . . . . . . . Follow-up Attacks . | . . . . . . . . . . . . Damage Inflicted 26121 | 199 1126 202 . 261 5521 5167 335 . 5948 53 7309 Guns 7228 | 164 834 202 . 92 3309 . . . . . 2627 Cannons 12223 | . . . . . 1326 3283 335 . 2713 53 4513 Explosions 6629 | 35 292 . . 169 886 1876 . . 3235 . 136 Melee . | . . . . . . . . . . . . Ramming 41 | . . . . . . 8 . . . . 33 Kinetic 19147 | . 694 202 . 92 4635 3283 335 . 2713 53 7140 Thermal 1253 | 108 62 . . . . 147 . . 915 . 21 Explosive 1847 | . 292 . . 169 886 . . . 410 . 90 Electromagnetic 3833 | 91 78 . . . . 1729 . . 1910 . 25 Impact . | . . . . . . . . . . . . Slashing . | . . . . . . . . . . . . Piercing . | . . . . . . . . . . . . Highest Corruption 18 | . . . . . 5 6 6 . 2 8 18 Average Corruption 7 | . . . . . 5 5 6 . 1 6 11 Corruption Purged . | . . . . . . . . . . . . Corruption Blocked . | . . . . . . . . . . . . Effects 212 | . . . . . 40 43 28 . 6 2 93 Message Errors 39 | . . . . . 4 7 9 . 3 . 16 Matter Fused 50 | . . . . . 9 12 8 . . . 21 Heat Flow Errors 20 | . . . . . 6 4 1 . . 1 8 Energy Discharges 24 | . . . . . 5 3 3 . 1 . 12 Parts Rejected 3 | . . . . . . . 1 . . . 2 Parts Fused 3 | . . . . . 1 . 2 . . . . Data Loss (minor) 24 | . . . . . 7 6 3 . . . 8 Data Loss (major) 14 | . . . . . 3 2 1 . . . 8 Misfires 9 | . . . . . 2 3 . . 1 1 2 Alerts 2 | . . . . . 1 . . . 1 . . Misdirections 3 | . . . . . . . . . . . 3 Weapon Failures 21 | . . . . . 2 6 . . . . 13 Overload Shots . | . . . . . . . . . . . . Overflow Damage 421 | . . . . . 39 35 22 . 127 . 198 Projectiles 257 | . . . . . 22 22 22 . 20 . 171 Explosions 164 | . . . . . 17 13 . . 107 . 27 Melee . | . . . . . . . . . . . . Knockbacks 98 | . . . . . 9 33 3 . 20 . 33 Impact . | . . . . . . . . . . . . Kinetic 91 | . . . . . 9 31 2 . 19 . 30 Secondary 7 | . . . . . . 2 1 . 1 . 3 Self-Inflicted Damage 425 | . . . . . 118 47 . . 127 . 133 Shots 15 | . . . . . 3 4 . . 7 . 1 Rammed 1 | . . . . . . 1 . . . . . Targets Rammed 2 | . . . . . . 1 . . . . 1 Kicked 1 | . . . . . . . . . . . 1 Crushed . | . . . . . . . . . . . . Highest Temperature 376 | 240 90 8 . 8 306 376 277 . 282 126 336 Average Temperature 78 | 102 23 5 . 6 69 102 82 . 67 45 87 Received Heat Transfer 2820 | . 150 . . . 702 558 . . 349 . 1061 Effects 11 | . . . . . 3 2 . . . . 6 Energy Bleed 1 | . . . . . . . . . . . 1 Interference 10 | . . . . . 3 2 . . . . 5 Siege Activations . | . . . . . . . . . . . . Martial Activations . | . . . . . . . . . . . . Shielding Activations . | . . . . . . . . . . . . Robots Disrupted 5 | . . . . . . 1 . . 4 . . Combat Hostiles 5 | . . . . . . 1 . . 4 . . Robots Corrupted 3 | . . . . . . 3 . . . . . Combat Hostiles 2 | . . . . . . 2 . . . . . Parts Fried 15 | . . . . . . 9 . . 6 . . Impact Corruptions . | . . . . . . . . . . . . Robots Melted . | . . . . . . . . . . . . Combat Hostiles . | . . . . . . . . . . . . Parts Melted 6 | 2 . . . . . 2 . . 1 . 1 Heat Transferred 1505 | 346 185 . . . . 250 . . 674 . 50 Parts Sabotaged . | . . . . . . . . . . . . Parts Stolen . | . . . . . . . . . . . . Parts Stripped . | . . . . . . . . . . . . Power Chain Reactions 10 | 1 . . . . . 5 . . 3 . 1 Alert | -11 -10 -10 -10 -9 -8 -8 -8 -8 -6 -6 -6 ------- Run | Yrd Mat Min Exi Min Mat Sto Rec Scr Fac Was Fac Maximum Alert Level 5 | . 1 . . . 4 4 2 . 5 3 5 Low Security (%) 29 | 100 89 100 . 100 12 . 22 . 36 . . Level 1 8 | . 10 . . . 7 . 52 . 5 . . Level 2 24 | . . . . . 23 49 24 . 5 . 50 Level 3 19 | . . . . . 46 42 . . 8 100 19 Level 4 12 | . . . . . 10 8 . . 19 . 27 Level 5 5 | . . . . . . . . . 24 . 3 High Security . | . . . . . . . . . . . . Max Security . | . . . . . . . . . . . . Sterilizations 1 | . . . . . 1 . . . . . . Peak Influence 2385 | 10 245 101 . 84 1243 1370 532 . 2385 835 1727 Initial 834 | . . 88 . . 24 516 532 . . 834 563 Average 626 | 1 87 38 . 39 680 768 290 . 925 819 884 Influence Increases 9605 | 30 547 83 . 94 1843 1370 197 . 3268 1 2172 Destroy 0b10 Robot/C 3980 | . 240 40 . 60 1020 840 80 . 1060 . 640 Destroy 0b10 Robot/NC 565 | 30 45 30 . 15 120 110 10 . 75 . 130 Destroy Leader 920 | . 50 10 . 10 228 174 . . 252 . 196 Allied During Kill 364 | . . 3 . . . . . . 342 . 19 Successful Hack 243 | . 30 . . . 17 17 26 . 99 . 54 Select Force Hacks 170 | . 30 . . . 30 30 60 . 20 . . Disable Machine 1080 | . 15 . . . 45 75 15 . 750 . 180 Anti-Garrison Action 300 | . . . . . 150 . . . 150 . . Destroy Structure 588 | . 32 . . 9 68 79 6 . 235 1 158 Partial Spotted 90 | . . . . . 15 . . . 45 . 30 Lose Combat Pursuer 1305 | . 105 . . . 150 45 . . 240 . 765 Influence Decreases 7878 | 30 318 312 . 30 685 1226 1394 169 883 1581 1250 Entered New Map 3683 | . . 141 . . 40 706 834 169 . 1551 242 Time Decay 3235 | 30 318 171 . 30 595 510 410 . 513 20 638 Lost Part 470 | . . . . . 50 10 . . 100 . 310 Lost Ally 190 | . . . . . . . . . 120 10 60 Purge Threat 300 | . . . . . . . 150 . 150 . . Squads Dispatched 83 | . 2 . . . 12 11 . . 31 . 27 Investigation 26 | . 2 . . . 1 2 . . 14 . 7 Extermination 10 | . . . . . . . . . 5 . 5 Reinforcement 18 | . . . . . 3 3 . . 4 . 8 Assault 14 | . . . . . 4 2 . . 5 . 3 Garrison 15 | . . . . . 4 4 . . 3 . 4 Intercept . | . . . . . . . . . . . . Searches Triggered . | . . . . . . . . . . . . Construction Impeded 14 | . . . . . 3 2 . . 3 . 6 Haulers Reinforced 1 | . . . . . . . . . 1 . . Active Scanning Responses . | . . . . . . . . . . . . Cargo Convoy Interrupts 1 | . . . . . . . . . . . 1 Stealth | -11 -10 -10 -10 -9 -8 -8 -8 -8 -6 -6 -6 --------- Run | Yrd Mat Min Exi Min Mat Sto Rec Scr Fac Was Fac Distress Signals 10 | . . . . . 5 2 . . 3 . . Communications Jammed . | . . . . . . . . . . . . Distress Signals . | . . . . . . . . . . . . Times Spotted 367 | . 24 . . 3 79 48 2 . 79 6 126 Peak Tracking Total 16 | . 4 . . 3 11 6 2 . 11 6 16 Tactical Retreats 39 | . 5 . . . 6 2 . . 8 . 18 Traps | -11 -10 -10 -10 -9 -8 -8 -8 -8 -6 -6 -6 ------- Run | Yrd Mat Min Exi Min Mat Sto Rec Scr Fac Was Fac Traps Triggered 12 | . 1 . . . . . . . 5 . 6 Indirectly 2 | . . . . . . . . . 2 . . Trap Hack Attempts . | . . . . . . . . . . . . Triggered . | . . . . . . . . . . . . Disarmed . | . . . . . . . . . . . . Reprogrammed 6 | . . . . . . . . . 6 . . Reused . | . . . . . . . . . . . . Traps Extracted . | . . . . . . . . . . . . Installed . | . . . . . . . . . . . . Triggered . | . . . . . . . . . . . . Machines | -11 -10 -10 -10 -9 -8 -8 -8 -8 -6 -6 -6 ---------- Run | Yrd Mat Min Exi Min Mat Sto Rec Scr Fac Was Fac Machines Disabled 74 | . 1 . . . 4 5 1 . 51 . 12 Max in Single Turn 10 | . 1 . . . 2 1 1 . 10 . 2 Garrison Access 2 | . . . . . 1 . . . 1 . . Machines Repaired . | . . . . . . . . . . . . Machines Dismantled . | . . . . . . . . . . . . Machines Sabotaged . | . . . . . . . . . . . . Overloaded Fab Kills . | . . . . . . . . . . . . Hacking | -11 -10 -10 -10 -9 -8 -8 -8 -8 -6 -6 -6 --------- Run | Yrd Mat Min Exi Min Mat Sto Rec Scr Fac Was Fac Machines Accessed 91 | . 9 . 1 . 9 13 9 4 31 . 15 Terminals 47 | . 8 . . . 6 10 6 . 14 . 3 Fabricators 8 | . . . . . . . . . 5 . 3 Repair Stations 5 | . . . . . 1 1 . . 2 . 1 Recycling Units 18 | . 1 . . . . 2 3 . 7 . 5 Scanalyzers 5 | . . . . . 1 . . . 2 . 2 Garrison Access 3 | . . . . . 1 . . . 1 . 1 Total Hacks 271 | . 32 . 1 . 31 24 27 26 88 . 42 Successful 171 | . 17 . 1 . 15 15 17 26 51 . 29 Failed 99 | . 14 . . . 16 9 10 . 37 . 13 Catastrophic 9 | . . . . . . . . . 6 . 3 Database Lockouts 1 | . 1 . . . . . . . . . . Manual 185 | . 30 . . . 24 16 25 . 64 . 26 Terminals 147 | . 31 . . . 22 19 21 . 45 . 9 Fabricators 20 | . . . . . . . . . 10 . 10 Repair Stations 15 | . . . . . 2 1 . . 6 . 6 Recycling Units 35 | . 1 . . . . 4 6 . 17 . 7 Scanalyzers 21 | . . . . . 5 . . . 8 . 8 Garrison Access 6 | . . . . . 2 . . . 2 . 2 Terminal Hacks 55 | . 9 . 1 . 2 9 3 26 5 . . Record 27 | . . . 1 . . 1 . 25 . . . Part Schematic 2 | . . . . . . . . . 2 . . Robot Schematic 2 | . 1 . . . . . 1 . . . . Robot Analysis 11 | . 8 . . . 1 2 . . . . . Open Door 5 | . . . . . . 5 . . . . . Branch Access Points 1 | . . . . . . 1 . . . . . Terminal Index 1 | . . . . . . . 1 . . . . Unreport Threat 2 | . . . . . . . 1 . 1 . . Reprogram Traps 1 | . . . . . . . . . 1 . . Recall Extermination 1 | . . . . . . . . . 1 . . Zone Layout 1 | . . . . . 1 . . . . . . Proto ID Catalog 1 | . . . . . . . . 1 . . . Fabricator Hacks 4 | . . . . . . . . . 2 . 2 Network Status 1 | . . . . . . . . . . . 1 Load Schematic 1 | . . . . . . . . . 1 . . Build 2 | . . . . . . . . . 1 . 1 Repair Station Hacks 8 | . . . . . . . . . 2 . 6 Scan Component 4 | . . . . . . . . . 1 . 3 Repair 4 | . . . . . . . . . 1 . 3 Recycling Unit Hacks 1 | . . . . . . . 1 . . . . Retrieve Components 1 | . . . . . . . 1 . . . . Scanalyzer 18 | . . . . . 4 . . . 8 . 6 Insert Component 9 | . . . . . 2 . . . 4 . 3 Analyze 9 | . . . . . 2 . . . 4 . 3 Garrison Access Hacks . | . . . . . . . . . . . . Unauthorized Hacks 85 | . 8 . . . 9 6 13 . 34 . 15 Terminals 47 | . 7 . . . 7 2 9 . 16 . 6 Assimilate 1 | . . . . . . . . . 1 . . Botnet 24 | . 6 . . . 2 2 4 . 8 . 2 Disrupt 1 | . . . . . . . . . . . 1 Operators 2 | . . . . . . . . . 1 . 1 Skim 19 | . 1 . . . 5 . 5 . 6 . 2 Fabricators 8 | . . . . . . . . . 4 . 4 Report 1 | . . . . . . . . . . . 1 Liberate 4 | . . . . . . . . . 2 . 2 Haulers 2 | . . . . . . . . . 1 . 1 Download 1 | . . . . . . . . . 1 . . Repair Stations 3 | . . . . . . 1 . . 2 . . Patch 3 | . . . . . . 1 . . 2 . . Recycling Units 24 | . 1 . . . . 3 4 . 12 . 4 Reject 2 | . . . . . . . . . 2 . . Recyclers 3 | . . . . . . 1 1 . 1 . . Mask 4 | . . . . . . 1 1 . 2 . . Tunnel 4 | . 1 . . . . 1 2 . . . . Fedlink 11 | . . . . . . . . . 7 . 4 Scanalyzers 1 | . . . . . 1 . . . . . . Extract 1 | . . . . . 1 . . . . . . Garrison Access 2 | . . . . . 1 . . . . . 1 Intercept 1 | . . . . . 1 . . . . . . Watchers 1 | . . . . . . . . . . . 1 Data Cores Recovered 1 | . 1 . . . . . . . . . . Used . | . . . . . . . . . . . . Hacking Detections 63 | . 8 . . . 9 8 7 . 21 . 10 Full Trace Events 9 | . 1 . . . . . 1 . 4 . 3 Feedback Events 1 | . . . . . . . . . 1 . . Corruption 1 | . . . . . . . . . 1 . . Feedback Blocked . | . . . . . . . . . . . . Robot Schematics Acquired 2 | . 1 . . . . . 1 . . . . Robots Built 2 | . . . . . . . . . 2 . . Authchips . | . . . . . . . . . . . . Time 58 | . . . . . . . . . 58 . . Total Robot Build Rating 6 | . . . . . . . . . 6 . . Part Schematics Acquired 15 | . . . . . 6 . . . 7 . 2 Parts Built 2 | . . . . . . . . . . . 2 Authchips . | . . . . . . . . . . . . Time 106 | . . . . . . . . . . . 106 Total Part Build Rating 12 | . . . . . . . . . . . 12 Parts Repaired 4 | . . . . . . . . . 1 . 3 Time 210 | . . . . . . . . . 30 . 180 Parts Recycled . | . . . . . . . . . . . . Recycled Matter . | . . . . . . . . . . . . Retrieved Matter . | . . . . . . . . . . . . Retrieved Components 4 | . . . . . . . 4 . . . . Parts Scanalyzed 9 | . . . . . 2 . . . 4 . 3 Part Schematics Acquired 8 | . . . . . 2 . . . 4 . 2 Parts Damaged 2 | . . . . . . . . . 1 . 1 Bothacking | -11 -10 -10 -10 -9 -8 -8 -8 -8 -6 -6 -6 ------------ Run | Yrd Mat Min Exi Min Mat Sto Rec Scr Fac Was Fac Used RIF Installer . | . . . . . . . . . . . . Robots Hacked . | . . . . . . . . . . . . Non-combat . | . . . . . . . . . . . . Combat . | . . . . . . . . . . . . Robot Hacks Applied . | . . . . . . . . . . . . Relay Couplers Released 3 | . . . . . 3 . . . . . . Machine Destruction 3 | . . . . . 3 . . . . . . Fabnet Peak Effective % . | . . . . . . . . . . . . Robots Rewired . | . . . . . . . . . . . . Allies Hacked . | . . . . . . . . . . . . Hacks Repelled . | . . . . . . . . . . . . Allies | -11 -10 -10 -10 -9 -8 -8 -8 -8 -6 -6 -6 -------- Run | Yrd Mat Min Exi Min Mat Sto Rec Scr Fac Was Fac Total Allies 12 | . . 1 . . . . . 5 3 . 3 Largest Group 5 | . . 1 . . . . . 5 5 1 3 Highest-Rated Group 235 | . . 31 . . . . . 235 235 24 87 Highest-Rated Ally 47 | . . 31 . . . . . 47 47 24 29 Total Orders . | . . . . . . . . . . . . Ally Attacks 162 | . . 6 . . . . . . 135 . 21 Total Damage 2962 | . . 128 . . . . . . 2549 . 285 Kills 22 | . . 1 . . . . . . 20 . 1 Allies Corrupted . | . . . . . . . . . . . . Allies Melted . | . . . . . . . . . . . . Intel | -11 -10 -10 -10 -9 -8 -8 -8 -8 -6 -6 -6 ------- Run | Yrd Mat Min Exi Min Mat Sto Rec Scr Fac Was Fac Active Infowar (turns) 2463 | 48 530 . . . 1330 . . . . . 555 Optics 6 | . . . . . . . . . . . 6 Sensors 113 | . . . . . . . . . . . 113 Terrain 578 | 48 530 . . . . . . . . . . Traps 1330 | . . . . . 1330 . . . . . . Machine Analysis 548 | . . . . . . . . . . . 548 ECM 1 | . . . . . . . . . . . 1 Robot Analysis Total 11 | . 8 . . . 1 2 . . . . . Derelict Logs Recovered 1 | . . . . 1 . . . . . . . Drone Launches . | . . . . . . . . . . . . Drone Recoveries . | . . . . . . . . . . . . Exploration | -11 -10 -10 -10 -9 -8 -8 -8 -8 -6 -6 -6 ------------- Run | Yrd Mat Min Exi Min Mat Sto Rec Scr Fac Was Fac Turns Passed 13328 | 128 1327 520 415 114 1885 1398 985 2198 2034 58 2266 Spaces Moved 9752 | 55 693 312 260 61 849 621 601 1362 2499 108 2331 Core 5 | 3 . . . . . . . . . . 2 Treads 5278 | 52 693 312 260 61 849 621 601 1362 440 . 27 Legs 246 | . . . . . . . . . . . 246 Wheels 156 | . . . . . . . . . . . 156 Hover 4067 | . . . . . . . . . 2059 108 1900 Flight . | . . . . . . . . . . . . Fastest Speed 36 | 50 160 160 160 160 160 158 158 158 36 42 36 Average Speed 108 | 154 160 160 160 160 161 162 158 158 61 42 58 Slowest Speed 350 | 160 160 160 160 160 240 163 158 238 158 42 350 Overloaded Moves 68 | . . . . . . . . . 39 . 29 Propulsion Burnouts . | . . . . . . . . . . . . Robots Hopped . | . . . . . . . . . . . . Potential Cave-ins . | . . . . . . . . . . . . Cave-ins Triggered . | . . . . . . . . . . . . Exploration Rate (%) 58 | 4 95 56 63 19 46 86 70 82 60 80 41 Regions Visited 11 Branch Regions 6 Pre-discovered Areas 11 | . 1 . 1 1 . 1 5 . 2 . . Known Exits Taken 4 | . . . . . 1 1 1 1 . . . Unknown Exits Taken 5 | 1 1 1 1 1 . . . . . . . Scrap Searched 3 | . . . . . . . . 3 . . . Spaces Dug 26 | . 8 . . . . 1 . . 10 . 7 Terrain Destroyed 554 | 5 28 . . 11 92 77 6 . 164 1 170 Melee . | . . . . . . . . . . . . Projectile 246 | . . . . . 25 58 6 . 28 1 128 AOE 307 | 5 28 . . 11 67 19 . . 136 . 41 Terrain Rammed 1 | . . . . . . . . . . . 1 Walls Destroyed 1 | . . . . . . . . . . . 1 Machines Disabled . | . . . . . . . . . . . . Actions | -11 -10 -10 -10 -9 -8 -8 -8 -8 -6 -6 -6 --------- Run | Yrd Mat Min Exi Min Mat Sto Rec Scr Fac Was Fac Total 11290 | 73 827 320 265 68 1117 796 619 1410 2805 117 2873 Wait 323 | . 42 . . . 12 26 1 19 47 7 169 Move 9742 | 54 692 311 259 60 848 620 600 1361 2499 107 2331 Hop . | . . . . . . . . . . . . Pick Up 120 | 1 15 . 3 . 29 8 1 12 30 2 19 Fast Attach 57 | 6 3 . . . 7 . 1 2 8 . 30 Attach 62 | 1 1 . . . 11 1 . 6 11 . 31 Detach 35 | . 4 . . . 2 . 2 2 4 . 21 Swap 171 | . 13 . . 2 41 27 4 1 47 . 36 Drop 125 | . 7 . 3 . 46 10 3 7 30 . 19 Fire 590 | 11 50 9 . 6 121 103 7 . 103 1 179 Melee . | . . . . . . . . . . . . Ram 1 | . . . . . . . . . . . 1 Kick 1 | . . . . . . . . . . . 1 Crush 1 | . . . . . . 1 . . . . . Escape Stasis 62 | . . . . . . . . . 26 . 36 Rewire . | . . . . . . . . . . . . Trap . | . . . . . . . . . . . . Miscellaneous . | . . . . . . . . . . . . Route ------- -11/Scrapyard -10/Materials (discovered 5 exits: [*Mat x3] / [*Min x2]) -10/Mines (discovered 2 exits: [*Mat] / *Exi) -10/Exiles -9/Mines -8/Materials (discovered 4 exits: *Fac x2 / *Sto x2) -8/Storage -8/Recycling (discovered 2 exits: Fac / *Scr) -8/Scraptown (discovered 2 exits: *Fac x2) -6/Factory (discovered 2 exits: Fac / *Low) -6/Waste -6/Factory (discovered 1 exit: *Low) History --------- Turn | Location | Event 12 | -11/Scrapyard | Discovered new exit (range 16) 129 | -11/Scrapyard | Entered Materials 131 | -10/Materials | Discovered new exit (range 4) 286 | -10/Materials | Discovered new exit (range 15) 301 | -10/Materials | Build established: Mutant 561 | -10/Materials | Discovered new exit (range 14) 937 | -10/Materials | Discovered new exit (range 16) 1341 | -10/Materials | Central database locked down 1342 | -10/Materials | Discovered new exit (range 7) 1456 | -10/Materials | Entered Mines 1538 | -10/Mines | Received a Mining Laser from a helpful Derelict 1774 | -10/Mines | Discovered new exit (range 15) 1968 | -10/Mines | Deemed a non-threat by the Exiles lab entrance 1969 | -10/Mines | Discovered new exit (range 5) 1976 | -10/Mines | Entered Exiles 2018 | -10/Exiles | Met 8R-AWN 2044 | -10/Exiles | Met EX-HEX 2124 | -10/Exiles | Met EX-DEC 2238 | -10/Exiles | Learned location of Zion (-6) 2284 | -10/Exiles | Met EX-BIN 2375 | -10/Exiles | Discovered new exit (range 10) 2391 | -10/Exiles | Entered Mines 2392 | -9/Mines | Learned location of Storage (-8) 2428 | -9/Mines | Discovered new exit (range 14) 2458 | -9/Mines | Learned location of 1 exit from Materials 2505 | -9/Mines | Entered Materials 2505 | -8/Materials | Evolved 4 slots: Propulsion x1, Utility x1, Weapon x2 2506 | -8/Materials | Identified exit to Storage 2553 | -8/Materials | Garrison activated, responded to threat 2866 | -8/Materials | Garrison activated, responded to threat 2982 | -8/Materials | Destroyed 10 combat bots 2991 | -8/Materials | Lost 5 parts (1n1u3w) 3328 | -8/Materials | Build established: Scavenger-Skirmisher 3477 | -8/Materials | Learned 2 Storage zone layouts 3520 | -8/Materials | Identified exit to Factory 3552 | -8/Materials | Learned Factory stockpile data 3572 | -8/Materials | Learned location of 1 exit from Recycling 3580 | -8/Materials | Learned 8 Factory zone layouts 3581 | -8/Materials | Learned location of 1 exit from Lower Caves 3592 | -8/Materials | Learned Storage security intel 3612 | -8/Materials | Learned 4 Recycling zone layouts 3828 | -8/Materials | Discovered exit to Factory (range 5) 4071 | -8/Materials | Discovered exit to Storage (range 8) 4105 | -8/Materials | First assault squad dispatched 4250 | -8/Materials | Destroyed 10 combat bots 4269 | -8/Materials | Sterilization system engaged 4269 | -8/Materials | Non-combat units ordered to evacuate 4369 | -8/Materials | Combat units ordered to evacuate 4385 | -8/Materials | Build established: Scavenger-Gunner 4390 | -8/Materials | Entered Storage 4725 | -8/Storage | Build established: Hacker-Gunner 4754 | -8/Storage | Identified exit to Recycling 4790 | -8/Storage | First assault squad dispatched 4950 | -8/Storage | Used back door to open Recycling access 5109 | -8/Storage | Garrison activated, responded to threat 5149 | -8/Storage | Destroyed 7 combat bots 5651 | -8/Storage | Garrison activated, responded to threat 5750 | -8/Storage | Destroyed 8 combat bots 5788 | -8/Storage | Entered Recycling 5789 | -8/Recycling | Met a Zionite searching for Scraptown 5789 | -8/Recycling | Identified exit to Scraptown 5846 | -8/Recycling | Build established: Gunner 6247 | -8/Recycling | Learned 4 Lower Caves zone layouts 6260 | -8/Recycling | Build established: Hacker-Gunner 6287 | -8/Recycling | Learned location of 2 exits from Lower Caves 6317 | -8/Recycling | Identified exit to Factory 6351 | -8/Recycling | Learned Factory trap positions 6356 | -8/Recycling | Learned 8 Factory zone layouts 6366 | -8/Recycling | Learned location of Extension (-5) 6385 | -8/Recycling | Learned 4 Factory zone layouts 6732 | -8/Recycling | Scanned before Scraplab entrance 6756 | -8/Recycling | Entered Scraplab 6773 | -8/Recycling | Entered Scraptown 6773 | -8/Scraptown | System corruption cleaned by C-Scrubber 7217 | -8/Scraptown | Visited CR-KLE's Repair Center 7433 | -8/Scraptown | Visited UFD Registry 7433 | -8/Scraptown | Registered with UFD as "Electroboard" 7463 | -8/Scraptown | Visited Shadow of the Wyrm 7499 | -8/Scraptown | Visited Red Mages 7517 | -8/Scraptown | Visited Junk Repository 7603 | -8/Scraptown | Visited Awakened 7666 | -8/Scraptown | Visited Science Guys 7756 | -8/Scraptown | Visited Research Penetration Think Tank 7789 | -8/Scraptown | Visited Chapter 10 7815 | -8/Scraptown | Visited Scrapoid Pod Storage 7823 | -8/Scraptown | Found Scrapoid Pod 7852 | -8/Scraptown | Visited Derelict Rescue Squad 7906 | -8/Scraptown | Visited Observation Area 7929 | -8/Scraptown | Found DRS Beacon 8109 | -8/Scraptown | Build established: Gunner 8380 | -8/Scraptown | Scrapoid Pod released 08S05-D (x5) 8515 | -8/Scraptown | Visited Junk Repository 8566 | -8/Scraptown | Visited A0-MCA Data Center 8576 | -8/Scraptown | Given an A- rating by A0-MCA 8580 | -8/Scraptown | Found A0-MCA's Component Scanner 8870 | -8/Scraptown | Met Optimus 8870 | -8/Scraptown | Accepted into 0bPrime 8963 | -8/Scraptown | Discovered exit to Factory (range 3) 8971 | -8/Scraptown | Entered Factory 8971 | -6/Factory | Accompanied by 5 allies 8971 | -6/Factory | Evolved 4 slots: Propulsion x3, Utility x1 8972 | -6/Factory | Identified exit to Lower Caves 8973 | -6/Factory | Loaded intel: 99 trap records 9132 | -6/Factory | Loaded intel: 8 recycling unit locations 9473 | -6/Factory | Build established: Hacker-Gunner 9620 | -6/Factory | Learned location of Protoforge (-3) 9913 | -6/Factory | Garrison activated, responded to threat 10007 | -6/Factory | Repaired Adv. EMP Blaster? 10021 | -6/Factory | First assault squad dispatched 10147 | -6/Factory | Lost 3 allies 10500 | -6/Factory | Garrison activated, responded to threat 10508 | -6/Factory | Identified exit to Factory 10666 | -6/Factory | Spotted B-75 Beast 10681 | -6/Factory | Learned location of Warlord (-4) 10719 | -6/Factory | Learned location of 2 exits from Proximity Caves 10749 | -6/Factory | Learned location of 1 exit from Proximity Caves 10790 | -6/Factory | Learned Factory emergency access door positions 10816 | -6/Factory | Lost 5 parts (2n3w) 10843 | -6/Factory | Learned location of 2 exits from Proximity Caves 10852 | -6/Factory | Fabricated X-57 Shotgunner? 11005 | -6/Factory | Sucked down chute 11005 | -6/Factory | Entered Waste 11009 | -6/Waste | Spotted C-40 Crusher 11017 | -6/Waste | Spotted C-40 Crusher 11020 | -6/Waste | EMP discharged 11020 | -6/Waste | Spotted C-40 Crusher 11020 | -6/Waste | Spotted C-40 Crusher 11022 | -6/Waste | Found Prototype Launcher 11025 | -6/Waste | 1 allies followed down the chute 11040 | -6/Waste | Spotted C-40 Crusher 11043 | -6/Waste | Spotted C-40 Crusher 11044 | -6/Waste | Discovered new exit (range 15) 11063 | -6/Waste | Entered Factory 11140 | -6/Factory | Identified Tesla Bomb Launcher 11346 | -6/Factory | Discovered exit to Lower Caves (range 11) 11355 | -6/Factory | Loaded intel: 8 recycling unit locations 11579 | -6/Factory | Repaired Gravmag Array 11625 | -6/Factory | Repaired Gauss Cannon? 11721 | -6/Factory | Repaired Corrupted Lgt. Antimatter Reactor? 11763 | -6/Factory | First assault squad dispatched 11945 | -6/Factory | Fabricated Mass Driver (x2) 12063 | -6/Factory | Cargo convoy interrupted 12116 | -6/Factory | Lost 4 allies 12155 | -6/Factory | System corruption reached 10% 12233 | -6/Factory | Found Prototype Device 12233 | -6/Factory | Identified Exp. ECM Suite 12479 | -6/Factory | Garrison activated, responded to threat 12570 | -6/Factory | Lost 3 allies 12578 | -6/Factory | Lost 11 parts (1p7n3u) 12605 | -6/Factory | Garrison activated, responded to threat 12612 | -6/Factory | Core integrity fell below 50% 12687 | -6/Factory | Core integrity fell below 20% 12723 | -6/Factory | Lost 11 parts (1p3n2u5w) 13011 | -6/Factory | Build established: Scavenger-Mutant 13086 | -6/Factory | Lost 3 parts (1n1u1w) 13329 | -6/Factory | Destroyed by G-50 Soldier with Heavy Laser Last Messages --------------- 13218_ K-01 Serf collects debris. 13220_ U-05 Engineer works on Pressure Siphon. 13220_ Acquired Flak Cannon. 13223_ Slug penetrates G-50 Soldier. 13223_ G-50 Soldier Hvy. Laser blasted off. 13223_ G-50 Soldier destroyed. 13225_ Acquired 1 matter. 13226_ K-01 Serf collects debris. 13240_ System corrupted: Component data lost. 13256_ System corrupted: Substantial component data lost. 13298_ Discarded Machine Analyzer. 13300_ System corrupted: Heat flow error (+112). 13305_ Kicked Wall. 13305_ Destabilizing: Core damaged (-25). 13305_ Destabilizing: Core damaged (-42). 13309_ U-05 Engineer builds a Wall. 13316_ System corrupted: Matter fused (-5). 13318_ K-01 Serf cleans the Nuclear Reactor. 13323_ Critical hit (Burn: +37). Map ----- +----------------------------------------------------+ | ????????????????????????????## ## #????? | | ????????????????????????????## ## #????? | | ?????????????????????????????# ## #????? | | ?????????????????????????????# ###### #????? | | ????????????????????????o????# #????# #????? | | ?????????????????####+####???# #????# #????? | | ??????????????? ???# #????# #????? | | ?????????????? ???# #????# #????? | | ?????????????? ####+###### #????? | | ????????????? # # #????? | | ?????????????? # # #????? | | ??????????????? # """ """ # #????? | | ????????????????? # """ """ # #????? | | ?????????????###??# # """ """ # #????? | | ????????????? ?# # # #????? | | ?????????????"" # # """ """ #########????? | | ?????????????"" #gk # """ """ #????????????? | | ?????????????"" + g + """ """ #????????????? | | ??????????????????#gg # #????????????? | | ??????????????????# # "" """ #########????? | | ??????????????????# # "" """ + +????? | | ??????????????????# # "T """ ### #####????? | | ??????????????????# # "" #?# #?????"""? | | ??????????????????# # "" #?# #????? ? | | ??????????????????# # #?# #??##?? ? | | ??????????????????# @############# ########+# | | ??????????????????# | | ??????????????????# ###???############ | | ??????????????????# #????????????????# "" | | ??????????????????# w #????????????????# "" | | ??????????????????# #????????????????# | | ??????????????????# #????????????????# | | ??????????????????# #????????????????# | | ??????????????? #????????????????# # | | ?????????? ?????????????????# # | | ???????? ?????????????????# # | | ???????? ?????????????????# # | | ????????? ?????????????????# # | | ??????????? ?????????????????# # | | ??????????????? ?????????????????# # | | ????????????????? ?????????????????# # | | ??????????????????????????????????????# # | | ??????????????????????????????????????# # | | ???????????????????????????????????????? # | | ?????????????????????????????????????????? ? | | ??????????????????????????????????????????? ? | | ?????????????????????????????????????????????? ? | | ?????????????????????????????????????????????????? | | ?????????????????????????????????????????????????? | | ?????????????????????????????????????????????????? | +----------------------------------------------------+ Best States ------------- Heat Dissipation 72 Energy Generation 29 Energy Capacity 340 Matter Stores 300 Matter Capacity 300 Sight Range 23 Robot Scan Range 16 Terrain Scan Range 16 Terrain Scan Density 10 Additional Mass Support 12 Armor Coverage 375 Weapon Shielding 33 Melee Speed Boost 20 Evasion (%) 57 Melee Accuracy 6 Recoil Reduction 11 Offensive Hacking 22 Defensive Hacking 20 Item Schematics ----------------- Hpw. Tractor Beam | -8/Materials | Scanalyzed Enh. Autogun | -8/Materials | Scanalyzed Axe | -8/Materials | Extracted Flak Cannon | -8/Materials | Extracted EMP Blaster | -8/Materials | Extracted Lgt. Deuterium Engine | -8/Materials | Extracted Plasma Rifle | -6/Factory | Hacked Gravmag Array | -6/Factory | Scanalyzed Recoil Stabilizer | -6/Factory | Scanalyzed Lgt. Antimatter Reactor | -6/Factory | Scanalyzed Gauss Cannon | -6/Factory | Scanalyzed Weapon Mount | -6/Factory | Hacked Hardcell Cannon | -6/Factory | Downloaded Magnetic Acceleration Cannon | -6/Factory | Scanalyzed Tesla Bomb Launcher | -6/Factory | Scanalyzed Robot Schematics ------------------ O-16 Technician | -10/Materials | Hacked X-57 Shotgunner | -8/Recycling | Hacked Fabricated ------------ X-57 Shotgunner | x2 | -6/Factory Mass Driver | x2 | -6/Factory | Preloaded Repaired ---------- Adv. EMP Blaster | 8% | -6/Factory Gravmag Array | 37% | -6/Factory Gauss Cannon | 18% | -6/Factory Lgt. Antimatter Reactor | 15% | -6/Factory | Corrupted Alien Tech Used ----------------- None Achievements -------------- None Challenges ------------ None Game ------ Seed VampiricMetafieldBoomstick Manual? 0 Play Time 02:10:54 Cumulative 547.4 hours Start 2025.08.18 @ 12:38:30 End 2025.08.18 @ 20:10:55 Sessions 3 Manual Loads 0 Difficulty Rogue Special Mode None Game No. 290 Rogue 290 Adventurer 0 Explorer 0 Win Type - Total 6 Types 3/0/1/1/0/0/0/0/0/1 Lore% 86 Gallery% 77 Achievement% 68 Wizard Run 0 Options --------- Layout 2 ASCII 0 Keyboard 1 Movement Vi Keybinds 0 Fullscreen 1 Font 16/Tamsyn Map View 55x47 Zoom Use 0% Tactical HUD 1 Map Filters NONE Filters NONE Steam 0 RUN: 8b2f8311-91d4-442c-9ca4-f1825b3d9f93